fUST/lending_fUST_20250530
["ID","MTS","AMOUNT","RATE_DAILY","PERIOD"]
[363171862,1748608246455,-500.0,0.00019451,2]
[363171863,1748608246464,-500.0,0.00019451,2]
[363171864,1748608246473,-500.0,0.00019451,2]
[363171865,1748608246483,-500.0,0.00019451,2]
[363171866,1748608246492,-500.0,0.00019451,2]
[363171867,1748608246501,-500.0,0.00019451,2]
[363171868,1748608246511,-500.0,0.00019451,2]
[363171869,1748608246520,-500.0,0.00019451,2]
[363171870,1748608246529,-500.0,0.00019451,2]
[363171871,1748608246539,-500.0,0.00019451,2]
[363171872,1748608246549,-209.05996979,0.00019451,2]
[363171873,1748608246560,-500.0,0.00019451,2]
[363171874,1748608246570,-430.0,0.00019452,2]
[363171875,1748608246580,-430.0,0.00019452,2]
[363171876,1748608246589,-430.0,0.00019452,2]
[363171877,1748608246599,-430.0,0.00019452,2]
[363171878,1748608246609,-430.0,0.00019452,2]
[363171879,1748608246619,-430.0,0.00019452,2]
[363171880,1748608246628,-430.0,0.00019452,2]
[363171881,1748608246638,-430.0,0.00019452,2]
[363171882,1748608246648,-430.0,0.00019452,2]
[363171883,1748608246658,-430.0,0.00019452,2]
[363171884,1748608246671,-430.0,0.00019452,2]
[363171885,1748608246681,-430.0,0.00019452,2]
[363171886,1748608246692,-430.0,0.00019452,2]
[363171887,1748608246702,-430.0,0.00019452,2]
[363171888,1748608246711,-500.0,0.00019452,2]
[363171889,1748608246721,-885.69,0.00019452,2]
[363171890,1748608246731,-456.65616903,0.00019452,2]
[363171891,1748608246740,-310.0,0.00019452,2]
[363171892,1748608246750,-430.0,0.00019452,2]
[363171893,1748608246759,-430.0,0.00019452,2]
[363171894,1748608246769,-766.6,0.00019452,2]
[363171895,1748608246778,-430.0,0.00019452,2]
[363171896,1748608246787,-430.0,0.00019452,2]
[363171897,1748608246797,-430.0,0.00019452,2]
[363171898,1748608246806,-430.0,0.00019452,2]
[363171899,1748608246815,-452.31209915,0.00019452,2]
[363171900,1748608246825,-713.88,0.00019452,2]
[363171901,1748608246834,-430.0,0.00019452,2]
[363171902,1748608246845,-430.0,0.00019452,2]
[363171903,1748608246854,-518.60808731,0.00019452,2]
[363171904,1748608246863,-433.86,0.00019452,2]
[363171905,1748608246873,-430.0,0.00019452,2]
[363171906,1748608246882,-430.0,0.00019452,2]
[363171907,1748608246892,-430.0,0.00019452,2]
[363171908,1748608246902,-430.0,0.00019452,2]
[363171909,1748608246913,-441.37357541,0.00019452,2]
[363171910,1748608246923,-151.0,0.00019452,2]
[363171911,1748608246932,-430.0,0.00019452,2]
[363171912,1748608246942,-463.06820166,0.00019452,2]
[363171913,1748608246951,-430.0,0.00019452,2]
[363171914,1748608246963,-294.91013577,0.00019452,2]
[363171915,1748608246972,-430.0,0.00019452,2]
[363171916,1748608246982,-1282.47,0.00019452,2]
[363171917,1748608246991,-182.03993,0.00019452,2]
[363171918,1748608247001,-151.0,0.00019452,2]
[363171919,1748608247010,-430.0,0.00019452,2]
[363171920,1748608247020,-182.03993,0.00019452,2]
[363171921,1748608247029,-151.0,0.00019452,2]
[363171922,1748608247038,-151.0,0.00019452,2]
[363171923,1748608247049,-430.0,0.00019452,2]
[363171924,1748608247061,-151.0,0.00019452,2]
[363171925,1748608247070,-247.469965,0.00019452,2]
[363171926,1748608247080,-430.0,0.00019452,2]
[363171927,1748608247091,-247.469965,0.00019452,2]
[363171928,1748608247100,-430.0,0.00019452,2]
[363171929,1748608247110,-430.0,0.00019452,2]
[363171930,1748608247120,-595.344287,0.00019452,2]
[363171931,1748608247130,-151.0,0.00019452,2]
[363171932,1748608247140,-595.344287,0.00019452,2]
[363171933,1748608247151,-430.0,0.00019452,2]
[363171934,1748608247162,-1503.57,0.00019452,2]
[363171935,1748608247171,-1026.38,0.00019452,2]
[363171936,1748608247181,-430.0,0.00019452,2]
[363171937,1748608247190,-151.0,0.00019452,2]
[363171938,1748608247200,-151.0,0.00019452,2]
[363171939,1748608247335,-151.0,0.00019452,2]
[363171940,1748608247345,-430.0,0.00019452,2]
[363171941,1748608247354,-430.0,0.00019452,2]
[363171942,1748608247364,-736.33,0.00019452,2]
[363171943,1748608247373,-430.0,0.00019452,2]
[363171944,1748608247384,-430.0,0.00019452,2]
[363171945,1748608247393,-556.46,0.00019452,2]
[363171946,1748608247402,-451.50273637,0.00019452,2]
[363171947,1748608247413,-430.0,0.00019452,2]
[363171948,1748608247423,-151.0,0.00019452,2]
[363171949,1748608247432,-151.0,0.00019452,2]
[363171950,1748608247442,-511.47079416,0.00019452,2]
[363171951,1748608247452,-430.0,0.00019452,2]
[363171952,1748608247461,-702.06,0.00019452,2]
[363171953,1748608247471,-547.80384565,0.00019452,2]
[363171954,1748608247480,-527.65,0.00019452,2]
[363171955,1748608247489,-494.5,0.00019452,2]
[363171956,1748608247499,-5075.43,0.00019452,2]
[363171957,1748608247508,-2417.93,0.00019452,2]
[363171958,1748608247518,-430.0,0.00019452,2]
[363171959,1748608247527,-430.0,0.00019452,2]
[363171960,1748608247536,-590.43,0.00019452,2]
[363171961,1748608247546,-880.05,0.00019452,2]
[363171962,1748608247556,-430.0,0.00019452,2]
[363171963,1748608247566,-430.0,0.00019452,2]
[363171964,1748608247576,-494.67,0.00019452,2]
[363171965,1748608247586,-6798.59,0.00019452,2]
[363171966,1748608247595,-4361.9,0.00019452,2]
[363171967,1748608247604,-702.68,0.00019452,2]
[363171968,1748608247614,-637.72,0.00019452,2]
[363171969,1748608247623,-1375.91,0.00019452,2]
[363171970,1748608247633,-510.54,0.00019452,2]
[363171971,1748608247642,-980.34,0.00019452,2]
[363171972,1748608247652,-1442.21,0.00019452,2]
[363171973,1748608247665,-430.0,0.00019452,2]
[363171974,1748608247675,-430.0,0.00019452,2]
[363171975,1748608247685,-1714.91,0.00019452,2]
[363171976,1748608247694,-430.0,0.00019452,2]
[363171977,1748608247704,-430.0,0.00019452,2]
[363171978,1748608247713,-431.57,0.00019452,2]
[363171979,1748608247723,-749.64,0.00019452,2]
[363171980,1748608247733,-736.48,0.00019452,2]
[363171981,1748608247742,-481.02,0.00019452,2]
[363171982,1748608247751,-1173.27,0.00019452,2]
[363171983,1748608247761,-407.22,0.00019452,2]
[363171984,1748608247770,-891.63,0.00019452,2]
[363171985,1748608247780,-413.793772,0.00019452,2]
[363171986,1748608247789,-430.0,0.00019452,2]
[363171987,1748608247800,-413.793772,0.00019452,2]
[363171988,1748608247810,-950.43,0.00019452,2]
[363171989,1748608247819,-691.64,0.00019452,2]
[363171990,1748608247828,-923.2,0.00019452,2]
[363171991,1748608247838,-430.0,0.00019452,2]
[363171992,1748608247847,-1023.66,0.00019452,2]
[363171993,1748608247857,-1107.37,0.00019452,2]
[363171994,1748608247866,-6499.95,0.00019452,2]
[363171995,1748608247876,-430.0,0.00019452,2]
[363171996,1748608247886,-454.51,0.00019452,2]
[363171997,1748608247896,-2663.49,0.00019452,2]
[363171998,1748608247906,-430.0,0.00019452,2]
[363171999,1748608247920,-413.60622999,0.00019452,2]
[363172000,1748608247929,-3706.7,0.00019452,2]
[363172001,1748608247939,-441.17,0.00019452,2]
[363172002,1748608247948,-1109.22,0.00019452,2]
[363172003,1748608247958,-1550.32,0.00019452,2]
[363172004,1748608247967,-151.0,0.00019452,2]
[363172005,1748608247977,-430.0,0.00019452,2]
[363172006,1748608247986,-4963.71,0.00019452,2]
[363172007,1748608247996,-151.0,0.00019452,2]
[363172008,1748608248006,-518.32,0.00019452,2]
[363172009,1748608248015,-2143.88,0.00019452,2]
[363172010,1748608248025,-2352.96,0.00019452,2]
[363172011,1748608248035,-1115.22,0.00019452,2]
[363172012,1748608248044,-237.711354,0.00019452,2]
[363172013,1748608248054,-237.711354,0.00019452,2]
[363172014,1748608248064,-470.75,0.00019452,2]
[363172015,1748608248076,-705.57,0.00019452,2]
[363172016,1748608248086,-1826.14,0.00019452,2]
[363172017,1748608248095,-253.167231,0.00019452,2]
[363172018,1748608248105,-430.0,0.00019452,2]
[363172019,1748608248115,-253.167231,0.00019452,2]
[363172020,1748608248124,-2465.34,0.00019452,2]
[363172021,1748608248134,-430.0,0.00019452,2]
[363172022,1748608248146,-1419.71,0.00019452,2]
[363172023,1748608248167,-211.87367464,0.00019452,2]
[363172024,1748608248176,-78.37019698,0.00019452,2]
[363172025,1748608248195,-351.62980302,0.00019452,2]
[363172026,1748608248205,-430.0,0.00019452,2]
[363172027,1748608248215,-430.0,0.00019452,2]
[363172028,1748608248225,-430.0,0.00019452,2]
[363172029,1748608248235,-666.84,0.00019452,2]
[363172030,1748608248245,-430.0,0.00019452,2]
[363172031,1748608248254,-719.87,0.00019452,2]
[363172032,1748608248265,-2215.4,0.00019452,2]
[363172033,1748608248276,-430.0,0.00019452,2]
[363172034,1748608248286,-874.72,0.00019452,2]
[363172035,1748608248296,-430.0,0.00019452,2]
[363172036,1748608248305,-180.066215,0.00019452,2]
[363172037,1748608248315,-453.74,0.00019452,2]
[363172038,1748608248324,-180.066215,0.00019452,2]
[363172039,1748608248333,-2209.45,0.00019452,2]
[363172040,1748608248343,-261.830002,0.00019452,2]
[363172041,1748608248352,-442.57,0.00019452,2]
[363172042,1748608248362,-5091.12,0.00019452,2]
[363172043,1748608248372,-430.0,0.00019452,2]
[363172044,1748608248382,-430.0,0.00019452,2]
[363172045,1748608248392,-1114.7,0.000195,2]
[363172046,1748608248413,-673.76840167,0.00019519,2]
[363172047,1748608248424,-151.0,0.0001958,2]
[363172048,1748608248435,-151.0,0.0001958,2]
[363172049,1748608248445,-230.669102,0.0001958,2]
[363172050,1748608248455,-230.669102,0.0001958,2]
[363172051,1748608248466,-1000.0,0.00019583,2]
[363172052,1748608248477,-152.402383,0.00019599,2]
[363172053,1748608248486,-151.0,0.00019599,2]
[363172054,1748608248496,-2816.77183,0.00019599,2]
[363172055,1748608248506,-2816.77183,0.00019599,2]
[363172056,1748608248515,-1365.811011,0.00019599,2]
[363172057,1748608248525,-151.0,0.000196,2]
[363172058,1748608248535,-151.0,0.000196,2]
[363172059,1748608248545,-157.314056,0.000196,2]
[363172060,1748608248554,-157.314056,0.000196,2]
[363172061,1748608248564,-151.0,0.00019617,2]
[363172062,1748608248573,-153.246323,0.00019617,2]
[363172063,1748608248583,-152.177729,0.00019617,2]
[363172064,1748608248593,-288.570512,0.00019617,2]
[363172065,1748608248603,-666.89819,0.00019617,2]
[363172066,1748608248612,-151.0,0.00019617,2]
[363172067,1748608248621,-666.89819,0.00019617,2]
[363172068,1748608248631,-151.0,0.00019636,2]
[363172069,1748608248641,-339.588877,0.00019636,2]
[363172070,1748608248650,-339.588877,0.00019636,2]
[363172071,1748608248662,-151.0,0.0001964,2]
[363172072,1748608248672,-151.0,0.0001964,2]
[363172073,1748608248681,-151.0,0.0001964,2]
[363172074,1748608248691,-151.0,0.0001964,2]
[363172075,1748608248701,-307.734421,0.00019671,2]
[363172076,1748608248711,-2067.14,0.00019672,2]
[363172077,1748608248720,-675.02382479,0.00019692,2]
[363172078,1748608248729,-151.0,0.00019726,2]
[363172079,1748608248739,-151.0,0.00019726,2]
[363172080,1748608248748,-151.0,0.00019726,2]
[363172081,1748608248757,-151.0,0.00019726,2]
[363172082,1748608248767,-151.0,0.00019726,2]
[363172083,1748608248776,-151.0,0.00019726,2]
[363172084,1748608248785,-151.0,0.00019726,2]
[363172085,1748608248795,-157.314056,0.00019726,2]
[363172086,1748608248804,-157.314056,0.00019726,2]
[363172087,1748608248813,-230.669102,0.00019726,2]
[363172088,1748608248822,-230.669102,0.00019726,2]
[363172089,1748608248831,-430.26681816,0.00019726,2]
[363172090,1748608248841,-151.0,0.00019726,2]
[363172091,1748608248850,-430.0,0.00019726,2]
[363172092,1748608248860,-151.0,0.00019726,2]
[363172093,1748608248869,-152.552183,0.00019726,2]
[363172094,1748608248879,-430.0,0.00019726,2]
[363172095,1748608248889,-151.0,0.00019726,2]
[363172096,1748608248899,-151.0,0.00019726,2]
[363172097,1748608248908,-151.0,0.00019726,2]
[363172098,1748608248920,-430.0,0.00019726,2]
[363172099,1748608248929,-259.173962,0.00019726,2]
[363172100,1748608248938,-430.0,0.00019726,2]
[363172101,1748608248948,-151.0,0.00019726,2]
[363172102,1748608248958,-151.0,0.00019726,2]
[363172103,1748608248968,-151.0,0.00019726,2]
[363172104,1748608248978,-151.0,0.00019726,2]
[363172105,1748608248987,-151.0,0.00019726,2]
[363172106,1748608248997,-151.0,0.00019726,2]
[363172107,1748608249007,-151.0,0.00019726,2]
[363172108,1748608249020,-151.0,0.00019726,2]
[363172109,1748608249029,-151.0,0.00019726,2]
[363172110,1748608249039,-181.9,0.00019726,2]
[363172111,1748608249050,-181.9,0.00019726,2]
[363172112,1748608249065,-181.9,0.00019726,2]
[363172113,1748608249075,-181.9,0.00019726,2]
[363172114,1748608249085,-181.9,0.00019726,2]
[363172115,1748608249095,-181.9,0.00019726,2]
[363172116,1748608249106,-430.0,0.00019726,2]
[363172117,1748608249117,-151.0,0.00019726,2]
[363172118,1748608249127,-151.0,0.00019726,2]
[363172119,1748608249137,-151.0,0.00019726,2]
[363172120,1748608249147,-259.430525,0.00019726,2]
[363172121,1748608249157,-151.0,0.00019726,2]
[363172122,1748608249172,-430.0,0.00019726,2]
[363172123,1748608249182,-430.0,0.00019726,2]
[363172124,1748608249192,-151.0,0.00019726,2]
[363172125,1748608249202,-252.91423254,0.00019726,2]
[363172126,1748608249270,-632.77576746,0.00019726,2]
[363172127,1748608249280,-430.0,0.00019726,2]
[363172128,1748608249291,-430.0,0.00019726,2]
[363172129,1748608249301,-766.6,0.00019726,2]
[363172130,1748608249311,-430.0,0.00019726,2]
[363172131,1748608249322,-339.588877,0.00019726,2]
[363172132,1748608249332,-339.588877,0.00019726,2]
[363172133,1748608249342,-713.88,0.00019726,2]
[363172134,1748608249352,-430.0,0.00019726,2]
[363172135,1748608249362,-333.43320166,0.00019726,2]
[363172136,1748608249565,-96.56679834,0.00019726,2]
[363172137,1748608249576,-666.89819,0.00019726,2]
[363172138,1748608249586,-151.0,0.00019726,2]
[363172139,1748608249597,-666.89819,0.00019726,2]
[363172140,1748608249607,-433.86,0.00019726,2]
[363172141,1748608249618,-151.0,0.00019726,2]
[363172142,1748608249627,-187.69950677,0.00019726,2]
[363172143,1748608249648,-242.30049323,0.00019726,2]
[363172144,1748608249659,-240.48216827,0.00019726,2]
[363172145,1748608249673,-189.51783173,0.00019726,2]
[363172146,1748608249683,-430.0,0.00019726,2]
[363172147,1748608249692,-151.0,0.00019726,2]
[363172148,1748608249702,-151.0,0.00019726,2]
[363172149,1748608249712,-430.0,0.00019726,2]
[363172150,1748608249722,-208.39505152,0.00019726,2]
[363172151,1748608249735,-221.60494848,0.00019726,2]
[363172152,1748608249744,-80.49507733,0.00019726,2]
[363172153,1748608249756,-892.3,0.00019726,2]
[363172156,1748608570681,512.583214,0.00013699,2]
[363172164,1748609152121,-319.98180529,0.00017147,2]
[363172170,1748609233088,-3237.14398513,0.00017147,2]
[363172171,1748609240076,-444.93843767,0.00017147,2]
[363172173,1748609345075,-1049.29677594,0.00017147,2]
[363172174,1748609347075,-268.62080126,0.00017147,2]
[363172175,1748609347096,-174.009938,0.0001732,2]
[363172176,1748609347116,-174.9243093,0.00017813,2]
[363172177,1748609354158,982.56563344,0.00017856,2]
[363172178,1748609358149,-2752.87991237,0.00017856,2]
[363172179,1748609358171,-218.140018,0.00018036,2]
[363172180,1748609358194,-300.0,0.00018149,2]
[363172181,1748609358216,-300.0,0.0001815,2]
[363172182,1748609358237,-300.0,0.0001815,2]
[363172183,1748609358431,-1200.0,0.0001815,2]
[363172184,1748609358458,-300.0,0.00018151,2]
[363172185,1748609358481,-4261.48826963,0.00018152,2]
[363172223,1748609432559,-244.16350657,0.00018152,2]
[363172226,1748609432569,-977.19,0.00018594,2]
[363172227,1748609432578,-352.6662838,0.00018778,2]
[363172230,1748609432588,-306.0,0.00018778,2]
[363172231,1748609432597,-195.92231373,0.000189,2]
[363172234,1748609432607,-300.0,0.00018903,2]
[363172235,1748609432617,-158.4280407,0.00018904,2]
[363172238,1748609432626,-176.414694,0.00018904,2]
[363172240,1748609432636,-153.0,0.00018904,2]
[363172242,1748609432646,-153.0,0.00018904,2]
[363172244,1748609432659,-572.1885402,0.00018904,2]
[363172246,1748609432668,-158.4280407,0.00018904,2]
[363172248,1748609432678,-153.0,0.00018904,2]
[363172250,1748609432688,-176.414694,0.00018904,2]
[363172252,1748609432698,-572.1885402,0.00018904,2]
[363172254,1748609432708,-153.0,0.00018904,2]
[363172256,1748609432717,-360.9078369,0.00018904,2]
[363172258,1748609432727,-158.4280407,0.00018904,2]
[363172260,1748609432737,-572.1885402,0.00018904,2]
[363172261,1748609432746,-153.0,0.00018904,2]
[363172262,1748609432756,-190.8638777,0.00018904,2]
[363172263,1748609432765,-158.4280407,0.00018904,2]
[363172264,1748609432775,-153.0,0.00018904,2]
[363172265,1748609432784,-572.1885402,0.00018904,2]
[363172266,1748609432794,-264.3466021,0.00018904,2]
[363172267,1748609432803,-158.4280407,0.00018904,2]
[363172268,1748609432813,-572.1885402,0.00018904,2]
[363172269,1748609432822,-572.1885402,0.00018904,2]
[363172270,1748609432832,-572.1885402,0.00018904,2]
[363172271,1748609432841,-1144.3770804,0.00018904,2]
[363172272,1748609432851,-572.1885402,0.00018904,2]
[363172273,1748609432860,-572.1885402,0.00018904,2]
[363172274,1748609432870,-572.1885402,0.00018904,2]
[363172275,1748609432880,-535.1149739,0.00018904,2]
[363172276,1748609432890,-158.4280407,0.00018959,2]
[363172277,1748609432899,-158.4280407,0.00018959,2]
[363172278,1748609432911,-158.4280407,0.00018959,2]
[363172279,1748609432921,-158.4280407,0.00018959,2]
[363172280,1748609432931,-306.0,0.00018959,2]
[363172281,1748609432942,-153.0,0.00018959,2]
[363172282,1748609432951,-158.4280407,0.00018959,2]
[363172283,1748609432962,-158.4280407,0.00018959,2]
[363172284,1748609432972,-153.0,0.00018959,2]
[363172285,1748609432982,-158.4280407,0.00018959,2]
[363172286,1748609432992,-342.3197414,0.00018959,2]
[363172287,1748609433001,-153.0,0.00018959,2]
[363172288,1748609433011,-572.1885402,0.00018959,2]
[363172289,1748609433021,-154.27949164,0.00019078,2]
[363172290,1748609433031,-778.0110663,0.00019078,2]
[363172291,1748609433040,-572.1885402,0.000191,2]
[363172292,1748609433051,-176.414694,0.000191,2]
[363172293,1748609433061,-153.0,0.000191,2]
[363172294,1748609433071,-572.1885402,0.000191,2]
[363172295,1748609433082,-153.0,0.000191,2]
[363172296,1748609433092,-158.4280407,0.000191,2]
[363172297,1748609433102,-572.1885402,0.000191,2]
[363172298,1748609433112,-154.200192,0.000191,2]
[363172299,1748609433122,-363.7180973,0.000191,2]
[363172300,1748609433132,-306.0,0.000191,2]
[363172301,1748609433142,-572.1885402,0.000191,2]
[363172302,1748609433152,-153.0,0.000191,2]
[363172303,1748609433165,-5000.0,0.00019177,2]
[363172304,1748609433175,-156.381,0.00019177,2]
[363172305,1748609433184,-432.59784885,0.00019177,2]
[363172306,1748609433194,-487.44739074,0.00019177,2]
[363172307,1748609433204,-430.0,0.00019178,2]
[363172308,1748609433214,-430.0,0.00019178,2]
[363172309,1748609433223,-430.0,0.00019178,2]
[363172310,1748609433234,-430.0,0.00019178,2]
[363172311,1748609433249,-295.99655748,0.00019178,2]
[363172312,1748609433279,-170.59918432,0.00019178,2]
[363172313,1748609433290,-430.0,0.00019178,2]
[363172314,1748609433300,-261.78734512,0.00019178,2]
[363172315,1748609433310,-430.0,0.00019178,2]
[363172316,1748609433320,-430.0,0.00019178,2]
[363172317,1748609433330,-430.0,0.00019178,2]
[363172318,1748609433340,-774.98,0.00019178,2]
[363172319,1748609433350,-430.0,0.00019178,2]
[363172320,1748609433359,-430.0,0.00019178,2]
[363172321,1748609433370,-670.78,0.00019178,2]
[363172322,1748609433380,-430.0,0.00019178,2]
[363172323,1748609433390,-430.0,0.00019178,2]
[363172324,1748609433400,-430.0,0.00019178,2]
[363172325,1748609433411,-624.65,0.00019178,2]
[363172326,1748609433421,-430.0,0.00019178,2]
[363172327,1748609433431,-430.0,0.00019178,2]
[363172328,1748609433440,-430.0,0.00019178,2]
[363172329,1748609433450,-430.0,0.00019178,2]
[363172330,1748609433460,-430.0,0.00019178,2]
[363172331,1748609433476,-1175.6,0.00019178,2]
[363172332,1748609433486,-430.0,0.00019178,2]
[363172333,1748609433496,-430.0,0.00019178,2]
[363172334,1748609433506,-430.0,0.00019178,2]
[363172335,1748609433515,-430.0,0.00019178,2]
[363172336,1748609433525,-430.0,0.00019178,2]
[363172337,1748609433534,-358.64970959,0.00019178,2]
[363172338,1748609433545,-430.0,0.00019178,2]
[363172339,1748609433556,-430.0,0.00019178,2]
[363172340,1748609433566,-2140.63,0.00019178,2]
[363172341,1748609433576,-430.0,0.00019178,2]
[363172342,1748609433585,-430.0,0.00019178,2]
[363172343,1748609433595,-1378.27,0.00019178,2]
[363172344,1748609433604,-430.0,0.00019178,2]
[363172345,1748609433614,-940.85,0.00019178,2]
[363172346,1748609433623,-430.0,0.00019178,2]
[363172347,1748609433633,-4666.86,0.00019178,2]
[363172348,1748609433642,-430.0,0.00019178,2]
[363172349,1748609433653,-430.0,0.00019178,2]
[363172350,1748609433666,-430.0,0.00019178,2]
[363172351,1748609433677,-674.97,0.00019178,2]
[363172352,1748609433687,-430.0,0.00019178,2]
[363172353,1748609433697,-430.0,0.00019178,2]
[363172354,1748609433707,-430.0,0.00019178,2]
[363172355,1748609433717,-483.68,0.00019178,2]
[363172356,1748609433727,-430.0,0.00019178,2]
[363172357,1748609433736,-510.09,0.00019178,2]
[363172358,1748609433745,-430.0,0.00019178,2]
[363172359,1748609433755,-430.0,0.00019178,2]
[363172360,1748609433764,-2216.44,0.00019178,2]
[363172361,1748609433773,-806.71,0.00019178,2]
[363172362,1748609433783,-284.14911004,0.00019178,2]
[363172363,1748609433793,-430.0,0.00019178,2]
[363172364,1748609433802,-643.55,0.00019178,2]
[363172365,1748609433812,-1572.01,0.00019178,2]
[363172366,1748609433821,-3998.41,0.00019178,2]
[363172367,1748609433832,-453.29,0.00019178,2]
[363172368,1748609433841,-430.0,0.00019178,2]
[363172369,1748609433851,-430.0,0.00019178,2]
[363172370,1748609433861,-430.0,0.00019178,2]
[363172371,1748609433871,-1322.02,0.00019178,2]
[363172372,1748609433880,-6232.04,0.00019178,2]
[363172373,1748609433890,-535.86,0.00019178,2]
[363172374,1748609433899,-453.44,0.00019178,2]
[363172375,1748609433911,-430.0,0.00019178,2]
[363172376,1748609433920,-601.27,0.00019178,2]
[363172377,1748609433930,-687.17,0.00019178,2]
[363172378,1748609433940,-430.0,0.00019178,2]
[363172379,1748609433949,-817.33,0.00019178,2]
[363172380,1748609433959,-430.0,0.00019178,2]
[363172381,1748609433969,-5958.29,0.00019178,2]
[363172382,1748609433979,-634.0,0.00019178,2]
[363172383,1748609433989,-470.0,0.00019178,2]
[363172384,1748609433998,-430.0,0.00019178,2]
[363172385,1748609434008,-430.0,0.00019178,2]
[363172386,1748609434018,-846.26,0.00019178,2]
[363172387,1748609434028,-430.0,0.00019178,2]
[363172388,1748609434038,-898.65,0.00019178,2]
[363172389,1748609434048,-888.2,0.00019178,2]
[363172390,1748609434057,-430.0,0.00019178,2]
[363172391,1748609434067,-1075.5,0.00019178,2]
[363172392,1748609434076,-644.12,0.00019178,2]
[363172393,1748609434086,-430.0,0.00019178,2]
[363172394,1748609434095,-430.0,0.00019178,2]
[363172395,1748609434105,-430.0,0.00019178,2]
[363172396,1748609434115,-4652.48,0.00019178,2]
[363172397,1748609434124,-675.1,0.00019178,2]
[363172398,1748609434134,-1421.13,0.00019178,2]
[363172399,1748609434143,-430.0,0.00019178,2]
[363172400,1748609434153,-3397.81,0.00019178,2]
[363172401,1748609434165,-871.23,0.00019178,2]
[363172402,1748609434175,-430.0,0.00019178,2]
[363172403,1748609434184,-430.0,0.00019178,2]
[363172404,1748609434194,-1965.23,0.00019178,2]
[363172405,1748609434204,-938.36,0.00019178,2]
[363172406,1748609434214,-430.0,0.00019178,2]
[363172407,1748609434223,-4550.06,0.00019178,2]
[363172408,1748609434233,-1261.25,0.00019178,2]
[363172409,1748609434243,-1022.29,0.00019178,2]
[363172410,1748609434252,-430.0,0.00019178,2]
[363172411,1748609434262,-541.22,0.00019178,2]
[363172412,1748609434272,-579.41965538,0.00019178,2]
[363172413,1748609434281,-430.0,0.00019178,2]
[363172414,1748609434291,-1016.79,0.00019178,2]
[363172415,1748609434300,-430.0,0.00019178,2]
[363172416,1748609434310,-430.0,0.00019178,2]
[363172417,1748609434320,-430.0,0.00019178,2]
[363172418,1748609434330,-430.0,0.00019178,2]
[363172419,1748609434339,-1673.97,0.00019178,2]
[363172420,1748609434349,-475.13,0.00019178,2]
[363172421,1748609434358,-2156.88,0.00019178,2]
[363172422,1748609434368,-431.52,0.00019178,2]
[363172423,1748609434377,-646.77,0.00019178,2]
[363172424,1748609434387,-430.0,0.00019178,2]
[363172425,1748609434396,-2441.53,0.00019178,2]
[363172426,1748609434408,-430.0,0.00019178,2]
[363172427,1748609434418,-1350.07,0.00019178,2]
[363172428,1748609434428,-430.0,0.00019178,2]
[363172429,1748609434438,-3081.68,0.00019178,2]
[363172430,1748609434448,-2025.32,0.00019178,2]
[363172431,1748609434457,-430.0,0.00019178,2]
[363172432,1748609434468,-659.88,0.00019178,2]